Cogmind - Beta 17 @@@ ROGUE MODE // 2026.07.02 @ 21:54:19 Player: mischief_2000 Result: Destroyed by S-27 Virus with Autogun Performance ------------- Evolutions (5) 2500 Regions Visited (8) 1600 Robots Destroyed (80) 400 Value Destroyed (1816) 1816 Prototype IDs (9) 180 Alien Tech Used (0) 0 Bonus (6852) 6852 TOTAL SCORE: 13348 Bonus ------- High Alert Combat Kills 6 Follower Combat Kills 7 Prayed to X0-1V1 5000 Major X0-1V1 Interference 1050 Registered with UFD 300 Met Optimus in HQ 500 Friendly Fire -11 Cogmind --------- Core Integrity 0/750 Matter 34/1100 Energy 1100/1100 System Corruption 7% Temperature Cool (0) Movement Walking (120) Location -5/Factory Parts ------- > --- POWER (2) -------- (None) > --- PROPULSION (6) --- Carbon-fiber Leg > --- UTILITY (6) ------ (None) > --- WEAPON (4) ------- Mace > --- INVENTORY (5) ---- Neutrino Core Nanoactuators Improved Transmission Jammer CPS Tube (2) DRS Beacon (Ready) Peak State ------------ > --- POWER ------------ Micro Fission Core Micro Fission Core > --- PROPULSION ------- Gravmag Array Antigrav System Gyrokinetic Inverter Antigrav Array > --- UTILITY ---------- Large Storage Unit ECM Suite Layered Heavy Armor Plating Experimental Hacking Suite X0-1V1's Piety Tracker > --- WEAPON ----------- KE Penetrator Power Maul Power Maul Power Sword > --- INVENTORY -------- Fusion Compressor Antigrav System High-capacity Matter Pod Nanoactuators Stasis Canceller Improved Transmission Jammer Centrium Light Armor Plating Improved Hacking Suite Experimental Hacking Suite Mapping Drone Bay Improved Remote Datajack CPS Tube CPS Tube Power Maul DRS Beacon [Rating: 112] Favorites ----------- Power Ion Engine Engine Ion Engine Power Core Micro Fission Core Reactor Graviton Reactor Propulsion Light Treads Treads Light Treads Leg Aluminum Leg Wheel Armored Wheel Hover Unit Airjet Flight Unit Field Propulsion Drive Utility X0-1V1's Piety Tracker Device X0-1V1's Piety Tracker Storage Large Storage Unit Processor Experimental Terrain Scan Processor Hackware Experimental Hacking Suite Protection Centrium Light Armor Plating Weapon Shotgun Energy Gun High-powered Shock Rifle Ballistic Gun Shotgun Ballistic Cannon Light Cannon Launcher Mini Grenade Launcher Special Weapon Mining Laser Impact Weapon Power Maul Slashing Weapon Power Sword Build | -11 -10 -10 -9 -9 -9 -9 -6 -5 ------- Run | Yrd Mat Min Mat Sto Rec Scr Fac Fac Slots Evolved 10 | . . . 2 . . . 6 2 Power 1 | . . . . . . . 1 . Propulsion 3 | . . . . . . . 2 1 Utility 4 | . . . . . . . 3 1 Weapon 2 | . . . 2 . . . . . Parts Attached 83 | 7 12 . 4 7 1 7 19 26 Power 13 | 1 1 . . 1 . . 5 5 Engine 6 | 1 1 . . 1 . . 3 . Core 6 | . . . . . . . 2 4 Reactor 1 | . . . . . . . . 1 Propulsion 26 | 2 4 . . 3 1 5 4 7 Treads 9 | . 4 . . 3 1 1 . . Leg 3 | 2 . . . . . . . 1 Wheel 1 | . . . . . . 1 . . Hover 12 | . . . . . . 3 4 5 Flight 1 | . . . . . . . . 1 Utility 19 | 2 3 . . 1 . 1 4 8 Device 8 | 1 2 . . . . . 2 3 Storage 4 | 1 1 . . 1 . 1 . . Processor 1 | . . . . . . . . 1 Hackware 2 | . . . . . . . 1 1 Protection 4 | . . . . . . . 1 3 Artifact . | . . . . . . . . . Weapon 25 | 2 4 . 4 2 . 1 6 6 Energy Gun 3 | 1 . . . . . 1 1 . Energy Cannon . | . . . . . . . . . Ballistic Gun 10 | 1 . . 4 1 . . 3 1 Ballistic Cannon 3 | . 2 . . . . . . 1 Launcher 2 | . . . . 1 . . 1 . Special Weapon 2 | . 1 . . . . . 1 . Impact Weapon 4 | . . . . . . . . 4 Slashing Weapon 1 | . 1 . . . . . . . Piercing Weapon . | . . . . . . . . . Special Melee Weapon . | . . . . . . . . . Unidentified Prototypes 9 | . 1 . . 2 . . 2 4 Parts Lost 11 | . . . . . . . 3 8 Power 1 | . . . . . . . 1 . Propulsion 4 | . . . . . . . . 4 Utility 5 | . . . . . . . 2 3 Weapon 1 | . . . . . . . . 1 Highest Loss Streak 5 | . . . . . . . 1 5 To Critical Strikes . | . . . . . . . . . Average Backups 15 | 6 12 15 14 15 17 19 12 11 Power . | . . . . . . . . . Propulsion 3 | 4 4 3 4 4 4 4 . . Utility 6 | . 2 3 4 8 10 10 8 6 Weapon 3 | 1 5 9 6 2 3 2 . . Tool/Special . | . . . . . . . . . Unused Backups 34 | . 8 . 5 1 . 5 1 14 Power 2 | . . . . . . 1 . 1 Propulsion 4 | . 3 . 1 . . . . . Utility 17 | . 1 . . 1 . 4 1 10 Weapon 7 | . 3 . 4 . . . . . Tool/Special 4 | . 1 . . . . . . 3 Average Slot Usage (%) 94 | . 99 100 93 99 100 98 83 71 Engine 9 | . 14 14 11 10 10 9 3 1 Core 1 | . . . . . . . 2 8 Treads 20 | . 25 28 22 29 30 23 . . Hover 6 | . . . . . . 6 25 17 Device 11 | . 14 14 11 10 10 10 11 9 Storage 10 | . 14 14 11 10 10 10 6 4 Energy Gun 4 | . 3 . . . . 9 1 1 Ballistic Gun 19 | . 5 . 32 36 40 27 16 4 Ballistic Cannon 5 | . 16 28 5 . . . . . Launcher 1 | . . . . . . 1 5 . Impact Weapon 1 | . . . . . . . . 7 Peak Build Rating 112 | 7 21 21 28 31 30 44 73 112 Average Rating 34 | 4 8 21 25 28 30 35 66 83 On Entrance 27 | . 7 21 21 28 30 30 44 68 Avg Prop Armor Cover (%) 1 | . . . . . . . . 1 Naked Turns . | . . . . . . . . . Heaviest Build 67 | 13 32 32 38 59 58 60 51 67 Greatest Support 68 | 20 40 40 40 60 60 60 45 68 Greatest Overweight (x) 19 | 3 1 . . . . 19 1 1 Average Overweight (x) . | 1 . . . . . . . . Largest Inventory Capacity 20 | 8 15 15 15 20 20 20 20 15 Average Capacity 16 | 7 14 15 15 16 20 19 15 13 Most Carried 20 | 8 15 15 15 17 18 20 20 15 Average Carried 15 | 6 13 15 14 15 17 19 14 13 Final Capacity 20 | 8 15 15 15 20 20 20 15 15 Final Carried 20 | 8 15 15 15 17 18 20 14 15 Class Distribution -------------------- 51% | Gunner 39% | Mutant 5% | Tank 3% | Skirmisher Dominant Class ---------------- Mutant | -10/Materials Mutant | -10/Mines Gunner | -9/Materials Gunner | -9/Storage Gunner | -9/Recycling Gunner | -9/Scraptown Tank | -6/Factory Mutant | -5/Factory Resources | -11 -10 -10 -9 -9 -9 -9 -6 -5 ----------- Run | Yrd Mat Min Mat Sto Rec Scr Fac Fac Matter Collected 3034 | 297 208 496 19 396 331 631 262 394 Remotely . | . . . . . . . . . Salvage Created 2466 | 159 395 . . 544 203 . 378 787 Parts 139 | 14 26 . . 41 4 . 23 31 Haulers Intercepted 5 | . 2 . . 2 . . 1 . Recyclers Shooed 4 | . . . . . 1 . 2 1 Parts Field Recycled . | . . . . . . . . . Retrieved Matter . | . . . . . . . . . Parts Self-Destructed . | . . . . . . . . . Prevented . | . . . . . . . . . Parts Restored . | . . . . . . . . . Kills | -11 -10 -10 -9 -9 -9 -9 -6 -5 ------- Run | Yrd Mat Min Mat Sto Rec Scr Fac Fac Combat Hostiles Destroyed 45 | . 8 . . 14 1 . 6 16 Melee 5 | . . . . . . . . 5 Guns 21 | . 5 . . 13 1 . . 2 Cannons 3 | . 3 . . . . . . . AOE 16 | . . . . 1 . . 6 9 Classes Destroyed 12 | 3 6 . . 2 . . . 1 Worker 9 | 1 3 . . 1 . . 3 1 Builder 4 | . 1 . . . . . 1 2 Tunneler 4 | 4 . . . . . . . . Hauler 5 | . 2 . . 2 . . 1 . Recycler 5 | 1 . . . . 2 . . 2 Mechanic 2 | . . . . 1 . . 1 . Operator 2 | . 1 . . . . . 1 . Watcher 3 | . 2 . . 1 . . . . Swarmer 25 | . 4 . . 7 . . 3 11 Grunt 12 | . 4 . . 1 . . 3 4 Sentry 8 | . . . . 7 1 . . . Programmer 1 | . . . . . . . . 1 Best Kill Streak 6 | 2 3 . . 6 1 . 5 5 Combat Bots Only 5 | . 3 . . 4 1 . 3 5 Max Kills in Single Turn 4 | 1 1 . . 3 1 . 3 4 Gunslinging 1 | . . . . 1 . . . . Exploded 4 | . . . . 1 . . 3 4 Melee 1 | . . . . . . . . 1 Uniques/NPCs Destroyed . | . . . . . . . . . Combat | -11 -10 -10 -9 -9 -9 -9 -6 -5 -------- Run | Yrd Mat Min Mat Sto Rec Scr Fac Fac Hostile Shots Fired 423 | . 38 . . 31 4 . 63 287 Missed 141 | . 7 . . 7 1 . 21 105 Hits 282 | . 31 . . 24 3 . 42 182 Projectile 282 | . 31 . . 24 3 . 42 182 AOE 1 | . . . . . . . . 1 Critical Strikes 9 | . . . . . . . 3 6 Part Disruptions 1 | . . . . . . . 1 . Damage Taken 5120 | . 318 . . 383 66 . 787 3566 Core 1336 | . 75 . . 45 . . 128 1088 Absorbed by Shields . | . . . . . . . . . Regen/Repaired (Parts) 146 | . 146 . . . . . . . Core Remaining (%) 87 | 100 . 70 . . . 100 78 . Volleys Fired 144 | 11 56 . . 27 8 . 29 13 Largest 4 | 2 2 . . 4 4 . 4 3 Hottest 136 | 70 100 . . 100 92 . 136 113 Shots Fired 358 | 22 112 . . 89 32 . 84 19 Gun 293 | 22 67 . . 86 32 . 67 19 Cannon 44 | . 44 . . . . . . . Launcher 19 | . . . . 2 . . 17 . Special 2 | . 1 . . 1 . . . . Kinetic 290 | 11 86 . . 86 32 . 65 10 Thermal 38 | 11 26 . . 1 . . . . Explosive 19 | . . . . 2 . . 17 . Electromagnetic 11 | . . . . . . . 2 9 Robot Hit Streak 12 | 4 7 . . 4 7 . 12 5 Robot Miss Streak 8 | 3 5 . . 8 2 . 4 5 Penetration Max 1 | . . . . . . . 1 . Secondary Targets 3 | . . . . 2 . . . 1 Max Gunslinging Chain 1 | . . . . 1 . . . 1 Shots Hit Robots 180 | 11 51 . . 43 13 . 34 28 Core Hits 111 | 7 24 . . 27 10 . 25 18 Critical Kills 1 | . . . . 1 . . . . Critical Parts Destroyed 3 | . . . . . . . 2 1 Critical Strikes 11 | . 5 . . 1 . . 2 3 Burn 3 | . 3 . . . . . . . Destroy 3 | . . . . 1 . . 2 . Blast 2 | . 2 . . . . . . . Smash 1 | . . . . . . . . 1 Sever 2 | . . . . . . . . 2 Melee Attacks 78 | . . . . . . . . 78 Impact 55 | . . . . . . . . 55 Slashing 23 | . . . . . . . . 23 Piercing . | . . . . . . . . . Sneak Attacks 5 | . . . . . . . . 5 Combat Hostiles 1 | . . . . . . . . 1 Follow-up Attacks 4 | . . . . . . . . 4 Damage Inflicted 5950 | 141 788 . . 1252 270 . 1255 2244 Guns 2442 | 141 444 . . 705 270 . 722 160 Cannons 340 | . 340 . . . . . . . Explosions 1999 | . . . . 547 . . 490 962 Melee 1122 | . . . . . . . . 1122 Ramming 47 | . 4 . . . . . 43 . Kinetic 2429 | 53 646 . . 705 270 . 694 61 Thermal 1129 | 88 138 . . . . . . 903 Explosive 1037 | . . . . 547 . . 490 . Electromagnetic 186 | . . . . . . . 28 158 Impact 682 | . . . . . . . . 682 Slashing 440 | . . . . . . . . 440 Piercing . | . . . . . . . . . Highest Corruption 7 | . 1 1 . . . . . 7 Average Corruption 1 | . 1 1 . . . . . 5 Corruption Purged . | . . . . . . . . . Corruption Blocked . | . . . . . . . . . Effects 21 | . 10 2 . . . . . 9 Message Errors 9 | . 5 . . . . . . 4 Matter Fused 6 | . 3 1 . . . . . 2 Heat Flow Errors 2 | . . 1 . . . . . 1 Energy Discharges 2 | . 1 . . . . . . 1 Parts Rejected 1 | . . . . . . . . 1 Misfires 1 | . 1 . . . . . . . Overload Shots . | . . . . . . . . . Overflow Damage 674 | . . . . 103 . . 23 548 Projectiles . | . . . . . . . . . Explosions 350 | . . . . 103 . . . 247 Melee 324 | . . . . . . . 23 301 Knockbacks 10 | . 5 . . . . . 1 4 Impact 4 | . . . . . . . 1 3 Kinetic 4 | . 4 . . . . . . . Secondary 2 | . 1 . . . . . . 1 Self-Inflicted Damage 610 | . . . . 136 . . 148 326 Shots 13 | . . . . 2 . . 6 5 Rammed 2 | . 1 . . . . . 1 . Targets Rammed 2 | . 1 . . . . . 1 . Kicked . | . . . . . . . . . Crushed . | . . . . . . . . . Highest Temperature 267 | 36 126 153 . 61 37 . 48 267 Average Temperature 31 | 13 38 77 . 21 15 . 16 81 Received Heat Transfer 861 | . 111 . . 18 18 . 312 402 Siege Activations . | . . . . . . . . . Martial Activations . | . . . . . . . . . Shielding Activations . | . . . . . . . . . Robots Disrupted . | . . . . . . . . . Combat Hostiles . | . . . . . . . . . Robots Corrupted 3 | . . . . . . . 1 2 Combat Hostiles . | . . . . . . . . . Parts Fried 12 | . . . . . . . 2 10 Impact Corruptions 14 | . . . . . . . 2 12 Robots Melted . | . . . . . . . . . Combat Hostiles . | . . . . . . . . . Parts Melted 1 | . 1 . . . . . . . Heat Transferred 1388 | 259 629 . . . . . . 500 Parts Sabotaged . | . . . . . . . . . Parts Stolen . | . . . . . . . . . Parts Stripped . | . . . . . . . . . Power Chain Reactions 1 | . . . . . . . . 1 Alert | -11 -10 -10 -9 -9 -9 -9 -6 -5 ------- Run | Yrd Mat Min Mat Sto Rec Scr Fac Fac Maximum Alert Level 2 | . . . . 1 . . 1 2 Low Security (%) 89 | 100 100 100 100 73 100 . 84 71 Level 1 10 | . . . . 26 . . 15 28 Level 2 . | . . . . . . . . . Level 3 . | . . . . . . . . . Level 4 . | . . . . . . . . . Level 5 . | . . . . . . . . . High Security . | . . . . . . . . . Max Security . | . . . . . . . . . Peak Influence 413 | 10 95 . 7 317 134 . 243 413 Initial 114 | . . . . . 114 . . 109 Average 73 | 2 17 . 1 160 66 . 86 159 Influence Increases 2248 | 30 304 . 12 553 35 . 406 908 Destroy 0b10 Robot/C 920 | . 160 . . 300 20 . 120 320 Destroy 0b10 Robot/NC 175 | 30 45 . 5 25 10 . 35 25 Destroy Leader 206 | . 48 . . 86 . . 22 50 Allied During Kill 33 | . . . . 33 . . . . Successful Hack 18 | . 2 . 7 5 4 . . . Disable Machine 225 | . . . . 60 . . 60 105 Destroy Structure 356 | . 4 . . 44 1 . 79 228 Partial Spotted 15 | . . . . . . . . 15 Lose Combat Pursuer 300 | . 45 . . . . . 90 165 Influence Decreases 1835 | 30 304 . 12 260 328 . 183 718 Entered New Map 293 | . . . . . 179 . . 114 Time Decay 1262 | 30 304 . 12 240 149 . 153 374 Lost Part 110 | . . . . . . . 30 80 Lost Ally 20 | . . . . 20 . . . . Purge Threat 150 | . . . . . . . . 150 Squads Dispatched 17 | . 1 . . 1 . . 8 7 Investigation 11 | . . . . . . . 6 5 Extermination 2 | . . . . . . . . 2 Reinforcement 3 | . 1 . . 1 . . 1 . Assault . | . . . . . . . . . Garrison 1 | . . . . . . . 1 . Intercept . | . . . . . . . . . Searches Triggered . | . . . . . . . . . Construction Impeded . | . . . . . . . . . Haulers Reinforced 1 | . . . . . . . 1 . Active Scanning Responses . | . . . . . . . . . Cargo Convoy Interrupts 1 | . . . . . . . . 1 Stealth | -11 -10 -10 -9 -9 -9 -9 -6 -5 --------- Run | Yrd Mat Min Mat Sto Rec Scr Fac Fac Distress Signals 8 | . 2 . . 2 . . . 4 Communications Jammed . | . . . . . . . . . Distress Signals . | . . . . . . . . . Times Spotted 143 | . 17 . . 20 1 . 16 89 Peak Tracking Total 17 | . 4 . . 5 1 . 7 17 Tactical Retreats 20 | . 2 . . . . . 1 17 ECM-based Alert Blocks 37 | . . . . . . . . 37 Traps | -11 -10 -10 -9 -9 -9 -9 -6 -5 ------- Run | Yrd Mat Min Mat Sto Rec Scr Fac Fac Traps Triggered 3 | . 3 . . . . . . . Indirectly . | . . . . . . . . . Trap Hack Attempts . | . . . . . . . . . Triggered . | . . . . . . . . . Disarmed . | . . . . . . . . . Reprogrammed . | . . . . . . . . . Reused . | . . . . . . . . . Traps Extracted . | . . . . . . . . . Installed . | . . . . . . . . . Triggered . | . . . . . . . . . Machines | -11 -10 -10 -9 -9 -9 -9 -6 -5 ---------- Run | Yrd Mat Min Mat Sto Rec Scr Fac Fac Machines Disabled 15 | . . . . 4 . . 4 7 Max in Single Turn 3 | . . . . 1 . . 1 3 Garrison Access 1 | . . . . . . . . 1 Machines Repaired . | . . . . . . . . . Machines Dismantled . | . . . . . . . . . Machines Sabotaged . | . . . . . . . . . Overloaded Fab Kills . | . . . . . . . . . Hacking | -11 -10 -10 -9 -9 -9 -9 -6 -5 --------- Run | Yrd Mat Min Mat Sto Rec Scr Fac Fac Machines Accessed 27 | . 7 . 1 1 1 3 6 8 Terminals 11 | . 6 . 1 1 1 . 1 1 Fabricators . | . . . . . . . . . Repair Stations 1 | . 1 . . . . . . . Recycling Units 10 | . . . . . . . 5 5 Scanalyzers . | . . . . . . . . . Garrison Access 2 | . . . . . . . . 2 Total Hacks 78 | . 23 . 1 2 3 23 12 14 Successful 44 | . 9 . 1 1 1 23 3 6 Failed 34 | . 14 . . 1 2 . 9 8 Catastrophic 7 | . 2 . . 1 2 . 2 . Database Lockouts . | . . . . . . . . . Manual 42 | . 18 . . 2 2 . 12 8 Terminals 29 | . 17 . 1 2 3 . 4 2 Fabricators . | . . . . . . . . . Repair Stations 6 | . 6 . . . . . . . Recycling Units 16 | . . . . . . . 8 8 Scanalyzers . | . . . . . . . . . Garrison Access 4 | . . . . . . . . 4 Terminal Hacks 29 | . 2 . 1 1 1 23 . 1 Record 23 | . . . . . . 23 . . Part Schematic 2 | . 2 . . . . . . . Robot Analysis 1 | . . . . . 1 . . . Branch Access Points 1 | . . . 1 . . . . . Unreport Threat 1 | . . . . . . . . 1 Hauler Manifests 1 | . . . . 1 . . . . Fabricator Hacks . | . . . . . . . . . Repair Station Hacks 6 | . 6 . . . . . . . Scan Component 3 | . 3 . . . . . . . Repair 3 | . 3 . . . . . . . Recycling Unit Hacks . | . . . . . . . . . Scanalyzer . | . . . . . . . . . Garrison Access Hacks 1 | . . . . . . . . 1 Seal Access 1 | . . . . . . . . 1 Unauthorized Hacks 8 | . 1 . . . . . 3 4 Terminals 1 | . 1 . . . . . . . Botnet 1 | . 1 . . . . . . . Fabricators . | . . . . . . . . . Repair Stations . | . . . . . . . . . Recycling Units 7 | . . . . . . . 3 4 Fedlink 7 | . . . . . . . 3 4 Scanalyzers . | . . . . . . . . . Garrison Access . | . . . . . . . . . Data Cores Recovered 1 | . . . 1 . . . . . Used . | . . . . . . . . . Hacking Detections 18 | . 7 . . 2 1 . 4 4 Full Trace Events 6 | . 2 . . . . . 3 1 Feedback Events 1 | . . . . . . . . 1 Corruption 1 | . . . . . . . . 1 Feedback Blocked 1 | . . . . . . . 1 . Robot Schematics Acquired . | . . . . . . . . . Robots Built . | . . . . . . . . . Authchips . | . . . . . . . . . Time . | . . . . . . . . . Total Robot Build Rating . | . . . . . . . . . Part Schematics Acquired 2 | . 2 . . . . . . . Parts Built . | . . . . . . . . . Authchips . | . . . . . . . . . Time . | . . . . . . . . . Total Part Build Rating . | . . . . . . . . . Part Studies Acquired . | . . . . . . . . . Parts Repaired 3 | . 3 . . . . . . . Time 78 | . 78 . . . . . . . Parts Recycled . | . . . . . . . . . Recycled Matter . | . . . . . . . . . Retrieved Matter . | . . . . . . . . . Retrieved Components . | . . . . . . . . . Parts Scanalyzed . | . . . . . . . . . Part Schematics Acquired . | . . . . . . . . . Parts Damaged . | . . . . . . . . . Bothacking | -11 -10 -10 -9 -9 -9 -9 -6 -5 ------------ Run | Yrd Mat Min Mat Sto Rec Scr Fac Fac Used RIF Installer . | . . . . . . . . . Robots Hacked . | . . . . . . . . . Non-combat . | . . . . . . . . . Combat . | . . . . . . . . . Robot Hacks Applied . | . . . . . . . . . Relay Couplers Released . | . . . . . . . . . Fabnet Peak Effective % . | . . . . . . . . . Robots Rewired . | . . . . . . . . . Allies Hacked . | . . . . . . . . . Hacks Repelled . | . . . . . . . . . Allies | -11 -10 -10 -9 -9 -9 -9 -6 -5 -------- Run | Yrd Mat Min Mat Sto Rec Scr Fac Fac Total Allies 3 | . . 3 . . . . . . Largest Group 3 | . . 3 3 3 . . . . Highest-Rated Group 40 | . . 40 40 40 . . . . Highest-Rated Ally 16 | . . 16 16 16 . . . . Initial UFD Resources 42 | . . . . . . . 22 42 Total Orders . | . . . . . . . . . Ally Attacks 13 | . . . 1 12 . . . . Total Damage 261 | . . . 15 246 . . . . Kills 3 | . . . 1 2 . . . . Allies Corrupted . | . . . . . . . . . Allies Melted . | . . . . . . . . . X0-1V1 Amusement Gains 93 | . 8 . 15 . . . 10 60 Good Acts 25 | . . . . 6 4 . 2 13 Bad Acts 6 | . . . . 1 . . 1 4 Intel | -11 -10 -10 -9 -9 -9 -9 -6 -5 ------- Run | Yrd Mat Min Mat Sto Rec Scr Fac Fac Active Infowar (turns) 2612 | 42 1558 . . . . . 301 711 IFF 833 | . . . . . . . 301 532 Seismic 1600 | 42 1558 . . . . . . . ECM 456 | . . . . . . . . 456 Robot Analysis Total 1 | . . . . . 1 . . . Derelict Logs Recovered 1 | . . 1 . . . . . . Drone Launches . | . . . . . . . . . Drone Recoveries . | . . . . . . . . . Exploration | -11 -10 -10 -9 -9 -9 -9 -6 -5 ------------- Run | Yrd Mat Min Mat Sto Rec Scr Fac Fac Turns Passed 6721 | 188 1569 245 141 589 305 2474 339 871 Spaces Moved 4585 | 94 806 154 77 292 173 1596 412 981 Core 90 | 47 . . . . . 1 . 42 Treads 2582 | . 699 154 77 292 173 1187 . . Legs 202 | 47 107 . . . . . . 48 Wheels . | . . . . . . . . . Hover 1711 | . . . . . . 408 412 891 Flight . | . . . . . . . . . Fastest Speed 44 | 50 120 160 160 160 160 52 44 46 Average Speed 124 | 144 154 160 160 160 160 151 52 56 Slowest Speed 1000 | 200 240 160 160 160 160 1000 105 190 Overloaded Moves . | . . . . . . . . . Propulsion Burnouts . | . . . . . . . . . Robots Hopped . | . . . . . . . . . Potential Cave-ins 5 | . . . . . . . 5 . Cave-ins Triggered . | . . . . . . . . . Exploration Rate (%) 42 | 6 94 39 6 64 44 86 16 29 Regions Visited 8 Branch Regions 4 Pre-discovered Areas 7 | . . 1 . . . 5 1 . Known Exits Taken 3 | . . . 1 . 1 . 1 . Unknown Exits Taken 5 | 1 1 1 . 1 . 1 . . Scrap Searched 8 | . . 1 . . . 7 . . Spaces Dug 56 | . 1 . . . . . 27 28 Terrain Destroyed 307 | . 1 . . 60 . . 115 131 Melee 28 | . . . . . . . . 28 Projectile 6 | . 1 . . . . . 4 1 AOE 273 | . . . . 60 . . 111 102 Terrain Rammed . | . . . . . . . . . Walls Destroyed . | . . . . . . . . . Machines Disabled . | . . . . . . . . . Actions | -11 -10 -10 -9 -9 -9 -9 -6 -5 --------- Run | Yrd Mat Min Mat Sto Rec Scr Fac Fac Total 5232 | 121 1017 153 98 354 181 1653 478 1177 Wait 147 | . 96 . . 14 . . 1 36 Move 4577 | 93 805 153 76 291 172 1595 411 981 Hop . | . . . . . . . . . Pick Up 80 | 10 22 . 10 3 . 16 2 17 Fast Attach 54 | 5 7 . . 3 . 10 10 19 Attach 28 | 2 3 . 2 2 . 3 6 10 Detach 5 | . 1 . . 1 . . . 3 Swap 32 | . 8 . 2 6 1 3 5 7 Drop 104 | . 18 . 8 7 . 26 13 32 Fire 144 | 11 56 . . 27 8 . 29 13 Melee 59 | . . . . . . . . 59 Ram 1 | . . . . . . . 1 . Kick . | . . . . . . . . . Crush 1 | . 1 . . . . . . . Escape Stasis . | . . . . . . . . . Rewire . | . . . . . . . . . Trap . | . . . . . . . . . Miscellaneous . | . . . . . . . . . Route ------- -11/Scrapyard -10/Materials (discovered 6 exits: *Mat x3 / [*Min x2] / [*Sub]) -10/Mines -9/Materials (discovered 3 exits: Min / *Sto x2) -9/Storage -9/Recycling (discovered 2 exits: Fac / *Scr) -9/Scraptown (discovered 2 exits: *Fac x2) -6/Factory (discovered 6 exits: *Fac x4 / Low / [*Ext]) -5/Factory (discovered 2 exits: *Upp x2) History --------- Turn | Location | Event 12 | -11/Scrapyard | Discovered new exit (range 16) 189 | -11/Scrapyard | Entered Materials 304 | -10/Materials | Build established: Mutant 306 | -10/Materials | Discovered new exit (range 13) 681 | -10/Materials | Discovered new exit (range 11) 800 | -10/Materials | Discovered new exit (range 7) 908 | -10/Materials | Discovered new exit (range 8) 1253 | -10/Materials | Repaired Lgt. Cannon 1280 | -10/Materials | Repaired Lgt. Treads 1495 | -10/Materials | Repaired Lgt. Treads 1562 | -10/Materials | Discovered new exit (range 15) 1659 | -10/Materials | Discovered new exit (range 8) 1671 | -10/Materials | Prayed at D.C.S.S. Altar Unit 1758 | -10/Materials | Entered Mines 1759 | -10/Mines | Learned location of Storage (-9) 1778 | -10/Mines | Learned Materials terminal intel 1822 | -10/Mines | Met a Derelict bent on vengeance 1880 | -10/Mines | Assisted by bots powering up and referring to "LRC-V3" 1968 | -10/Mines | Discovered new exit (range 12) 2003 | -10/Mines | Entered Materials 2003 | -9/Materials | Accompanied by 3 allies 2003 | -9/Materials | Evolved 2 slots: Weapon x2 2003 | -9/Materials | Discovered new exit (range 7) 2004 | -9/Materials | Loaded intel: 12 terminal locations 2034 | -9/Materials | Identified exit to Mines 2034 | -9/Materials | Identified exit to Storage 2144 | -9/Materials | Entered Storage 2144 | -9/Storage | Accompanied by 3 allies 2178 | -9/Storage | Propulsion slot count permanently improved by X0-1V1 (+1) 2360 | -9/Storage | Build established: Gunner 2548 | -9/Storage | Matter capacity permanently improved by X0-1V1 (+300) 2726 | -9/Storage | Used back door to open Recycling access 2726 | -9/Storage | Discovered new exit (range 5) 2733 | -9/Storage | Entered Recycling 2734 | -9/Recycling | Joined Warlord attack on 0b10 via Recycling 2785 | -9/Recycling | X0-1V1 activates XOMVISION 2877 | -9/Recycling | Identified exit to Factory 2877 | -9/Recycling | X0-1V1 revealed exit location to -7/Factory 2971 | -9/Recycling | Identified exit to Scraptown 2971 | -9/Recycling | X0-1V1 revealed exit location to -9/Scraptown 2995 | -9/Recycling | Scanned before Scraplab entrance 3019 | -9/Recycling | Entered Scraplab 3038 | -9/Recycling | Entered Scraptown 3277 | -9/Scraptown | Visited Symbiants 3293 | -9/Scraptown | Visited CPS Storage 3495 | -9/Scraptown | Heard Great Nut preacher, LISTEN AND RECITE! 3665 | -9/Scraptown | Discovered new exit (range 11) 3714 | -9/Scraptown | Visited TADAMA 3769 | -9/Scraptown | Visited CR-KLE's Repair Center 3828 | -9/Scraptown | Visited Bundlers 4002 | -9/Scraptown | Visited Cave Peace 4077 | -9/Scraptown | Visited UFD Registry 4087 | -9/Scraptown | Registered with UFD as "Thunderback" 4156 | -9/Scraptown | Visited Cartography Club 4189 | -9/Scraptown | Visited Chapter 10 4220 | -9/Scraptown | Visited Botcube Research 4260 | -9/Scraptown | Visited Derelict Rescue Squad 4284 | -9/Scraptown | Visited Research Penetration Think Tank 4319 | -9/Scraptown | Visited Observation Area 4508 | -9/Scraptown | Visited LU-1G1's Boring Crew 4540 | -9/Scraptown | Visited Junk Repository 4600 | -9/Scraptown | Visited Scrap Suit Storage 4940 | -9/Scraptown | Found Surveybot 17 Chip 5027 | -9/Scraptown | Learned location of Recycling (-9) 5027 | -9/Scraptown | Learned location of Upper Caves (-5) 5027 | -9/Scraptown | Learned location of Warlord (-4) 5027 | -9/Scraptown | Learned location of Extension (-6) 5027 | -9/Scraptown | Learned location of Quarantine (-3) 5027 | -9/Scraptown | Learned 12 Materials zone layouts 5027 | -9/Scraptown | Learned 12 Factory zone layouts 5027 | -9/Scraptown | Learned 16 Factory zone layouts 5027 | -9/Scraptown | Learned 20 Factory zone layouts 5027 | -9/Scraptown | Learned 4 Access zone layouts 5027 | -9/Scraptown | Learned 20 Lower Caves zone layouts 5027 | -9/Scraptown | Learned 24 Upper Caves zone layouts 5027 | -9/Scraptown | Learned 20 Proximity Caves zone layouts 5027 | -9/Scraptown | Learned Storage emergency access door positions 5027 | -9/Scraptown | Learned location of 1 exit from Upper Caves 5027 | -9/Scraptown | Learned location of 1 exit from Proximity Caves 5265 | -9/Scraptown | Found DRS Beacon 5313 | -9/Scraptown | Found Lrg. Botcube 5400 | -9/Scraptown | Met Optimus 5400 | -9/Scraptown | Accepted into 0bPrime 5506 | -9/Scraptown | Discovered new exit (range 3) 5512 | -9/Scraptown | Entered Factory 5512 | -6/Factory | Evolved 6 slots: Power x1, Propulsion x2, Utility x3 5513 | -6/Factory | Identified exit to Lower Caves 5513 | -6/Factory | Identified exit to Factory 5516 | -6/Factory | Heat dissipation permanently improved by X0-1V1 (+20) 5574 | -6/Factory | Loaded intel: 8 recycling unit locations 5600 | -6/Factory | Garrison activated, responded to threat 5665 | -6/Factory | Learned location of Protoforge (-3) 5679 | -6/Factory | X0-1V1 sent you into danger 5724 | -6/Factory | Discovered new exit (range 10) 5851 | -6/Factory | Entered another Factory area 5851 | -5/Factory | Evolved 2 slots: Propulsion x1, Utility x1 5887 | -5/Factory | Loaded intel: 8 recycling unit locations 5895 | -5/Factory | Sensors blinded by X0-1V1 5932 | -5/Factory | Identified exit to Upper Caves 5932 | -5/Factory | X0-1V1 revealed exit location to -5/Upper Caves 5964 | -5/Factory | X0-1V1 sent you to a vault 5968 | -5/Factory | Found Prototype Hackware 5968 | -5/Factory | Identified Exp. Hacking Suite 5985 | -5/Factory | Found Prototype Processor 5985 | -5/Factory | Identified Exp. Terrain Scan Processor 6010 | -5/Factory | Found Exp. Hacking Suite 6065 | -5/Factory | Discovered exit to Upper Caves (range 7) 6152 | -5/Factory | X0-1V1 activates XOMVISION 6453 | -5/Factory | Build established: Mutant 6558 | -5/Factory | Cargo convoy interrupted 6572 | -5/Factory | Released all parts (11) 6576 | -5/Factory | Core integrity fell below 50% 6577 | -5/Factory | Core integrity fell below 20% 6578 | -5/Factory | X0-1V1 rescued you from certain death 6602 | -5/Factory | Lost 5 parts (3n2u) 6722 | -5/Factory | Destroyed by S-27 Virus with Autogun Last Messages --------------- 06629_ Acquired Neutrino Core. 06636_ Acquired Mass Driver. 06637_ Dropped Mass Driver. 06641_ R-10 Processor collects Mass Driver. 06642_ IH5#Y#TV R4ANVG /W:BF 06675_ Dropped Fusion Compressor. 06676_ System corrupted: Matter fused (-5). 06676_ Acquired Mace. 06709_ Power Maul follow-up attack on S-27 Virus. 06712_ Power Maul destroyed. 06718_ Destroyed VTOL Module. 06718_ S-27 Virus system corrupted by crushing effect. 06721_ Destroyed VTOL Module. 06721_ S-27 Virus system corrupted by crushing effect. 06721_ Autogun fried. 06721_ Lgt. Nuclear Core fried. 06721_ S-27 Virus destroyed. 06722_ X0-1V1 giggles madly! Map ----- +----------------------------------------------------+ | ??????????????????????????????????# " " | | ??????????????????????????????????# " " "" | | ??????????????????????????????????##" " "" | | ???????????????????????????????????#" "[ "" | | ??????????????????##########???????#" " | | ??????????????????#! #???????## # | | ??????????????????# """ #?????#######"### | | ??????????????????# """ #?????# # | | | ??????????????????# """ #?????# [ ####### | | ??????????????????# #?????# #?????? | | ??????????????????#! * """ ####### #?????? | | ??????????????????#! """ # ##"######+###?????? | | ??????????????????# """ + ! #???????? | | ??????????????????# # ### ^ #???????? | | ??????????????????#####;#####+####^ """ #???????? | | ??????????????????????## # """ +???????? | | ???????????????????????# # """ #???????? | | ???????????????????????# | ] # #???????? | | ???????????????????????# # #???????? | | ??????????????????????##;######### ##### #???????? | | ??????????????????????# s ## " " ## #???????? | | ??????????????????????# # " " ## #???????? | | ??????????????????????# #"[""""""## #???????? | | ??????????????????????# #[ * "# #???????? | | ??????????????????????# # " #???????? | | ??????????????????????# @ s # "# #???????? | | ??????????????????????####+### [ # #???????? | | ????????????????????????? % "# #???????? | | ?????????????????????????# ### "# #???##### | | ?????????????????????????# # " ["# #???# | | ?????????????????????????# ##" "# #???# | | ?????????????????????????# ##" [## #???# | | ?????????????????????????# ##""""""##"## ##### | | ?????????????????????????# # | | ?????????????????????????# # | | ?????????????????????????? ""G"" " """ + | | ?????????????????????????# " " " """ # | | ?????????????????????????# " """ # | | ?????????????????????????# # | | ?????????????????????????# """ """ """ """ # | | ?????????????????????????? ?"" """ """ """ # | | ?????????????????????????????"" """ """ """ ##### | | ????????????????????????????? # | | ????????????????????????????? + | | ????????????????????????????? # " | | ??????????????????????????????### # " | | ????????????????????????????????# # " | | ????????????????????????????????# # " | | ????????????????????????????????# # " | | ????????????????????????????????# # " | +----------------------------------------------------+ Best States ------------- Heat Dissipation 60 Energy Generation 25 Energy Capacity 1315 Matter Stores 1023 Matter Capacity 1100 Sight Range 21 Terrain Scan Density 10 ECM Strength 1 Armor Coverage 750 Evasion (%) 56 Recoil Reduction 3 Offensive Hacking 16 Defensive Hacking 10 Item Schematics ----------------- Hcp. Storage Unit | -10/Materials | Hacked Huge Storage Unit | -10/Materials | Hacked Robot Schematics ------------------ None Fabricated ------------ Nothing Repaired ---------- Lgt. Cannon | 64% | -10/Materials Lgt. Treads | 67% | -10/Materials Lgt. Treads | 59% | -10/Materials Studied --------- None Alien Tech Used ----------------- None Achievements -------------- None Challenges ------------ None Game ------ Seed ThrusterMasterPower Manual? 0 Play Time 01:25:59 Cumulative 315.2 hours Start 2026.07.01 @ 03:10:55 End 2026.07.02 @ 21:54:19 Sessions 7 Manual Loads 0 Difficulty Rogue Special Mode None Game No. 160 Rogue 160 Adventurer 0 Explorer 0 Win Type - Total 7 Types 4/0/1/1/0/0/0/1/0/0 Lore% 69 Gallery% 69 Achievement% 60 Wizard Run 0 Options --------- Layout 1 ASCII 0 Keyboard 0 Movement Mouse Keybinds 0 Fullscreen 1 Font 18/SmallcapsGlow Map View 54x44 Zoom Use 0% Tactical HUD 1 Map Filters NONE Filters NONE Steam 0 RUN: 2af54014-cbf6-49c4-9926-2aebfb1f4f4d